Cogmind - Beta 14 @@@ ROGUE MODE // 2024.08.10 @ 03:01:20 Player: ktur Result: Destroyed by Combat Programmer with EMDS Performance ------------- Evolutions (7) 3500 Regions Visited (28) 5600 Robots Destroyed (238) 1190 Value Destroyed (10785) 10785 Prototype IDs (116) 2320 Alien Tech Used (6) 1200 Bonus (5643) 5643 TOTAL SCORE: 30238 Bonus ------- High Alert Combat Kills 2680 Follower Combat Kills 617 Registered with UFD 300 Met Data Miner 300 Met Zhirov 300 Met Warlord at Base 500 MAIN.C Attacked Warlord 500 Warlord Defense Kills 134 Scanned by Researcher 500 Pursued by Intercept 500 Friendly Fire -688 Cogmind --------- Core Integrity 0/1300 Matter 296/300 Energy 149/600 System Corruption 55% Temperature Cool (0) Movement Core (50) Location -3/Section 7 Parts ------- > --- POWER (1) -------- (None) > --- PROPULSION (6) --- High-density Centrium Heavy Treads Flexi-carbon Leg Myomer Leg Myomer Leg High-density Centrium Leg > --- UTILITY (12) ----- Advanced Energy Well Experimental Optical Array Experimental Targeting Computer Experimental Target Analyzer Core Analyzer Experimental Armor Integrity Analyzer Improved Hacking Suite > --- WEAPON (2) ------- (None) > --- INVENTORY (5) ---- Integrity Redistributor Core Stripper Peak State ------------ > --- POWER ------------ Improved Quantum Reactor > --- PROPULSION ------- Experimental Biometal Heavy Treads High-density Centrium Heavy Treads High-density Centrium Heavy Treads > --- UTILITY ---------- Experimental Power Amplifier Large Storage Unit Experimental Optical Array Experimental Targeting Computer Experimental Target Analyzer Heavy Regenerative Plating Advanced Thermal Shield Experimental Force Field Hacking Suite Improved Hacking Suite A0-MCA's Component Scanner > --- WEAPON ----------- Precision Phase Gun Multirail > --- INVENTORY -------- High-density Centrium Leg High-density Centrium Leg Advanced Energy Well Experimental EM Disruption Field Transdimensional Reconstructor Integrated Mediator Vortex Shotgun Compact HERF Cannon Graviton Cannon Advanced Remote Datajack CPS Tube CPS Tube Core Stripper Botcube [Rating: 189] Favorites ----------- Power Reinforced Ion Engine Engine Reinforced Ion Engine Power Core Fusion Compressor Reactor Compact Particle Reactor Propulsion Improved Airjet Treads Light Treads Leg High-density Centrium Leg Wheel Subdweller Monowheel Hover Unit Improved Airjet Flight Unit Flight Unit Utility Large Storage Unit Device Seismic Detector Storage Large Storage Unit Processor A0-MCA's Component Scanner Hackware Hacking Suite Protection Improved Utility Shielding Artifact Core Physics Calibrator Weapon Spear Energy Gun EM Pulse Gun Energy Cannon Enhanced Nova Cannon Ballistic Gun Enhanced Autogun Ballistic Cannon Antimatter Cannon Launcher Mini Smartbomb Launcher Special Weapon CPS Tube Impact Weapon Power Maul Slashing Weapon Chainsword Piercing Weapon Spear Build | -11 -10 -10 -8 -8 -8 -8 -6 -6 -6 -6 -6 -6 -5 -5 -5 -5 -5 -5 -5 -4 -4 -4 -4 -4 -3 -3 -3 -3 ------- Run | Yrd Mat Sub Mat Sto Rec Scr Fac Was Fac Low Low Dat Pro Fac Was Fac Upp Upp Zhi Pro Fac Upp Upp War Pro Res Qua Sec Slots Evolved 14 | . . . 4 . . . 4 . . . . . . 2 . . . . . . 2 . . . . 2 . . Power . | . . . . . . . . . . . . . . . . . . . . . . . . . . . . . Propulsion 4 | . . . 1 . . . 2 . . . . . . 1 . . . . . . . . . . . . . . Utility 10 | . . . 3 . . . 2 . . . . . . 1 . . . . . . 2 . . . . 2 . . Weapon . | . . . . . . . . . . . . . . . . . . . . . . . . . . . . . Parts Attached 298 | 8 1 15 22 29 4 19 9 2 13 3 4 . 2 18 1 16 1 1 3 4 5 1 2 8 . 15 39 53 Power 27 | 1 . 2 1 3 . . 1 . . . . . 1 4 . 5 . 1 1 . . . . . . 3 1 3 Engine 6 | 1 . 2 . 3 . . . . . . . . . . . . . . . . . . . . . . . . Core 16 | . . . 1 . . . 1 . . . . . 1 4 . 5 . 1 1 . . . . . . 1 1 . Reactor 5 | . . . . . . . . . . . . . . . . . . . . . . . . . . 2 . 3 Propulsion 62 | 2 . 4 5 8 1 1 4 2 8 . . . . 1 1 1 . . . . . . . 2 . 2 9 11 Treads 19 | 2 . . 4 3 1 . . . . . . . . . . . . . . . . . . . . . 5 4 Leg 14 | . . . 1 4 . . . . . . . . . . . . . . . . . . . . . . 2 7 Wheel 4 | . . 4 . . . . . . . . . . . . . . . . . . . . . . . . . . Hover 17 | . . . . . . . . . 8 . . . . 1 1 1 . . . . . . . 2 . 2 2 . Flight 8 | . . . . 1 . 1 4 2 . . . . . . . . . . . . . . . . . . . . Utility 109 | 2 . . 7 7 1 10 4 . 5 2 . . . 8 . 5 1 . 2 . 5 1 2 1 . 10 18 18 Device 55 | 1 . . 2 2 . 5 1 . 2 . . . . 6 . 4 . . . . 2 1 1 1 . 8 11 8 Storage 8 | 1 . . 1 . . 1 1 . 1 . . . . . . . . . . . . . . . . . 1 2 Processor 8 | . . . . . . 1 . . . . . . . . . . 1 . . . . . 1 . . . 2 3 Hackware 11 | . . . . 1 . 2 1 . 1 . . . . . . . . . 1 . 3 . . . . 1 1 . Protection 26 | . . . 4 4 1 1 1 . 1 2 . . . 2 . 1 . . 1 . . . . . . 1 3 4 Artifact 1 | . . . . . . . . . . . . . . . . . . . . . . . . . . . . 1 Weapon 100 | 3 1 9 9 11 2 8 . . . 1 4 . 1 5 . 5 . . . 4 . . . 5 . . 11 21 Energy Gun 17 | 3 . 4 2 . . . . . . . . . . 1 . . . . . . . . . . . . 4 3 Energy Cannon 6 | . . . . . . . . . . . . . . . . . . . . . . . . 2 . . 1 3 Ballistic Gun 17 | . . 2 3 5 1 1 . . . . . . . . . . . . . . . . . . . . 2 3 Ballistic Cannon 16 | . . . . . . . . . . 1 4 . . 2 . 2 . . . 2 . . . . . . . 5 Launcher 11 | . . . . 2 . . . . . . . . 1 2 . 2 . . . 2 . . . 2 . . . . Special Weapon 13 | . 1 3 1 . . 2 . . . . . . . . . . . . . . . . . . . . 2 4 Impact Weapon 7 | . . . 2 . . 1 . . . . . . . . . . . . . . . . . . . . 1 3 Slashing Weapon 9 | . . . 1 4 1 2 . . . . . . . . . . . . . . . . . . . . 1 . Piercing Weapon 4 | . . . . . . 2 . . . . . . . . . 1 . . . . . . . 1 . . . . Special Melee Weapon . | . . . . . . . . . . . . . . . . . . . . . . . . . . . . . Unidentified Prototypes 10 | . . . 1 3 . . . . . . . . . . . . . . 1 . . . . . . . 2 3 Corrupted Parts 5 | . . . 2 . . . . . . . . . . . . . . . . . . . . . . . . 3 System Corruption 28 | . . . 8 . . . . . . . . . . . . . . . . . . . . . . . . 20 Parts Lost 56 | . . 7 2 13 . . . . . . . . . 2 . . . . . . 1 . . . . 1 11 19 Power 6 | . . 1 1 1 . . . . . . . . . 1 . . . . . . . . . . . . 1 1 Propulsion 16 | . . 3 1 3 . . . . . . . . . . . . . . . . . . . . . 1 3 5 Utility 21 | . . . . 6 . . . . . . . . . 1 . . . . . . 1 . . . . . 4 9 Weapon 13 | . . 3 . 3 . . . . . . . . . . . . . . . . . . . . . . 3 4 Highest Loss Streak 11 | . . 4 2 7 . . . . . . . . . 1 . . . . . . 1 . . . . 1 8 11 To Critical Strikes 1 | . . 1 . . . . . . . . . . . . . . . . . . . . . . . . . . Average Slot Usage (%) 93 | . 100 94 95 88 100 99 92 99 97 87 86 86 86 92 94 94 94 94 94 94 93 94 94 93 94 94 87 75 Engine 4 | . 14 13 8 5 9 9 . . . . . . . . . . . . . . . . . . . . . . Core 2 | . . . . 1 . . 2 6 6 6 6 6 6 4 5 5 5 5 5 5 5 5 5 5 5 2 1 1 Treads 11 | . 28 7 17 13 27 26 . . . . . . . . . . . . . . . . . . . . 2 10 Leg 1 | . . . 8 10 . . . . . . . . . . . . . . . . . . . . . . 2 4 Wheel 1 | . . 18 1 . . . . . . . . . . . . . . . . . . . . . . . . . Hover 13 | . . . . . . . . . 27 33 33 33 33 35 35 35 35 35 35 35 31 31 31 31 31 27 17 . Device 12 | . 14 14 18 16 9 18 7 6 8 6 6 6 6 9 11 11 8 5 5 5 5 5 5 6 10 18 17 10 Storage 7 | . 14 14 9 9 9 9 6 6 6 6 6 6 6 5 5 5 5 5 5 5 5 5 5 5 5 4 5 6 Processor 5 | . . . . . . 3 6 6 6 6 6 6 6 5 5 5 7 11 10 5 5 5 7 10 10 9 12 19 Hackware 5 | . . . . . 9 2 15 20 14 6 6 6 6 1 . . . . . 5 19 21 17 13 10 9 10 7 Protection 10 | . . . 15 14 18 11 5 6 9 13 13 13 13 16 17 17 17 17 17 17 10 10 10 10 10 9 5 2 Energy Gun 2 | . 26 14 5 . . . . . . . . . . . . . . . . . . . . . . . 1 2 Ballistic Gun 1 | . . 8 1 8 17 . . . . . . . . . . . . . . . . . . . . . . . Launcher 1 | . . . . . . . . . . . . . . 1 5 4 5 5 5 5 5 5 5 4 5 4 . . Impact Weapon 2 | . . . 6 1 . 6 . . . . . . . . . . . . . . . . . . . . . . Slashing Weapon 1 | . . . 3 6 . 4 . . . . . . . . . . . . . . . . . . . . 1 . Piercing Weapon 4 | . . . . . . 7 6 6 6 6 6 6 6 5 5 5 5 5 5 5 5 5 5 5 5 4 . . Peak Build Rating 189 | 7 7 13 28 35 28 36 57 64 71 77 77 72 73 93 90 98 95 94 97 96 112 112 112 119 119 148 177 189 Average Rating 65 | 4 7 10 22 26 27 30 52 57 68 72 72 72 71 88 90 91 94 93 95 96 106 107 106 110 119 138 155 163 On Entrance 73 | . 7 7 10 28 27 26 34 57 58 71 72 72 72 72 90 90 95 94 94 96 96 106 112 107 119 119 139 167 Naked Turns . | . . . . . . . . . . . . . . . . . . . . . . . . . . . . . Heaviest Build 97 | 13 13 18 54 77 63 67 21 21 36 52 52 44 44 57 50 55 53 52 53 53 53 52 52 55 55 68 79 97 Greatest Support 270 | 40 40 40 60 69 60 60 25 25 59 45 45 45 53 62 62 62 54 54 54 62 62 62 54 70 62 88 270 270 Greatest Overweight (x) 16 | . . 4 1 3 1 1 6 . 2 1 1 1 1 1 . 16 . . . . . . . 1 . 1 3 4 Average Overweight (x) . | . . . . . . . . . . . . . . . . . . . . . . . . . . . . . Largest Inventory Capacity 15 | 8 8 8 15 15 15 15 15 10 15 15 15 15 15 15 15 15 15 15 15 15 15 15 15 15 15 15 15 15 Average Capacity 13 | 7 8 8 10 15 15 15 10 10 10 15 15 15 15 15 15 15 15 15 15 15 15 15 15 15 15 15 15 13 Most Carried 15 | 6 5 8 14 15 15 15 14 10 12 15 15 15 15 15 15 15 15 15 15 15 15 15 15 15 15 15 15 15 Average Carried 13 | 4 5 6 9 14 14 14 10 9 9 14 14 15 14 14 15 14 14 14 14 15 14 14 15 14 15 14 14 12 Final Capacity 15 | 8 8 8 15 15 15 15 10 10 15 15 15 15 15 15 15 15 15 15 15 15 15 15 15 15 15 15 15 5 Final Carried 15 | 5 5 8 14 15 15 15 10 10 12 15 15 15 15 15 15 15 14 15 15 15 15 15 15 15 15 15 15 3 Class Distribution -------------------- 37% | Scavenger-Mutant 26% | Mutant 14% | Sprinter 11% | Hacker-Sprinter 8% | Hacker-Mutant Dominant Class ---------------- Mutant | -10/Materials Mutant | -10/Subcaves Scavenger-Mutant | -8/Materials Scavenger-Mutant | -8/Storage Scavenger-Mutant | -8/Recycling Scavenger-Mutant | -8/Scraptown Hacker-Sprinter | -6/Factory Hacker-Sprinter | -6/Waste Hacker-Mutant | -6/Factory Mutant | -6/Lower Caves Mutant | -6/Lower Caves Mutant | -6/Data Miner Mutant | -5/Proximity Caves Sprinter | -5/Factory Sprinter | -5/Waste Sprinter | -5/Factory Sprinter | -5/Upper Caves Sprinter | -5/Upper Caves Sprinter | -5/Zhirov Sprinter | -4/Proximity Caves Hacker-Sprinter | -4/Factory Hacker-Sprinter | -4/Upper Caves Hacker-Sprinter | -4/Upper Caves Hacker-Sprinter | -4/Warlord Hacker-Sprinter | -3/Proximity Caves Hacker-Mutant | -3/Research Hacker-Mutant | -3/Quarantine Scavenger-Mutant | -3/Section 7 Resources | -11 -10 -10 -8 -8 -8 -8 -6 -6 -6 -6 -6 -6 -5 -5 -5 -5 -5 -5 -5 -4 -4 -4 -4 -4 -3 -3 -3 -3 ----------- Run | Yrd Mat Sub Mat Sto Rec Scr Fac Was Fac Low Low Dat Pro Fac Was Fac Upp Upp Zhi Pro Fac Upp Upp War Pro Res Qua Sec Matter Collected 7979 | 244 31 328 297 557 172 218 12 248 612 360 348 . 238 752 . 743 146 174 30 129 193 10 45 . 19 381 453 1239 Remotely . | . . . . . . . . . . . . . . . . . . . . . . . . . . . . . Salvage Created 12111 | 31 105 387 889 1152 56 . 12 . 383 263 133 . 42 1401 . 988 193 275 79 82 680 156 53 28 47 592 1698 2386 Parts 540 | 4 3 18 24 58 3 . 3 . 7 5 1 . 2 60 . 55 5 6 2 2 35 9 9 . 2 43 86 98 Haulers Intercepted 12 | . . . 2 3 . . . . 1 . . . . 1 . 3 . . . . . . . . . . . 2 Recyclers Shooed 4 | . . . . . . . . . . . . . . 1 . . . . . . 1 . . . . . . 2 Parts Field Recycled . | . . . . . . . . . . . . . . . . . . . . . . . . . . . . . Retrieved Matter . | . . . . . . . . . . . . . . . . . . . . . . . . . . . . . Parts Self-Destructed 51 | . . 8 . . . . . . . 2 . . 13 . . . 6 3 2 . . 10 6 . 1 . . . Prevented 10 | . . 1 . . . . . . . 9 . . . . . . . . . . . . . . . . . . Kills | -11 -10 -10 -8 -8 -8 -8 -6 -6 -6 -6 -6 -6 -5 -5 -5 -5 -5 -5 -5 -4 -4 -4 -4 -4 -3 -3 -3 -3 ------- Run | Yrd Mat Sub Mat Sto Rec Scr Fac Was Fac Low Low Dat Pro Fac Was Fac Upp Upp Zhi Pro Fac Upp Upp War Pro Res Qua Sec Combat Hostiles Destroyed 167 | . 2 8 13 21 1 . . . . 4 . . 3 7 . 16 4 . . 3 4 2 5 1 5 11 24 33 Melee 43 | . . . 4 5 . . . . . 3 . . 1 1 . 2 . . . 1 4 2 . . . 8 12 . Guns 42 | . 2 6 2 8 1 . . . . . . . . . . . . . . . . . . . . . 10 13 Cannons 12 | . . . . . . . . . . 1 . . . 2 . 1 . . . . . . . . . . . 8 AOE 50 | . . 2 . 7 . . . . . . . . 2 4 . 13 4 . . 2 . . 5 1 5 3 1 1 Classes Destroyed 25 | 1 1 2 7 4 . . 1 . . 1 . . . 1 . 1 . . . . . . . . . . 3 3 Worker 15 | . . . 3 1 . . . . 1 . . . . 6 . 3 . . . . 1 . . . . . . . Builder 9 | . . . 1 . . . . . . . . . . 3 . 3 . . . . 2 . . . . . . . Tunneler 5 | 2 . . 2 . . . . . . . . . . 1 . . . . . . . . . . . . . . Hauler 12 | . . . 2 3 . . . . 1 . . . . 1 . 3 . . . . . . . . . . . 2 Recycler 16 | . . . 1 1 . . . . 2 . . . . 7 . 2 . . . . 3 . . . . . . . Minesweeper 4 | . . . . . . . . . . 2 . . . . . . . 1 . . . 1 . . . . . . Mechanic 1 | . . . 1 . . . . . . . . . . . . . . . . . . . . . . . . . Operator 3 | . . . . . . . 1 . . . . . . 1 . . . . . . . . . . . 1 . . Watcher 2 | . . . . 1 . . . . . . . . . 1 . . . . . . . . . . . . . . Swarmer 36 | . . 3 1 . . . . . . . . . 3 . . 10 4 . . . . . 5 . 5 5 . . Cutter 4 | . . . . . . . . . . . . . . . . 4 . . . . . . . . . . . . Saboteur 2 | . . . . . . . . . . . . . . . . . . . . . . . . . . . . 2 Grunt 61 | . 2 . 8 13 . . . . . 4 . . . 4 . 1 . . . 1 . . . 1 . 1 5 21 Brawler 3 | . . . . 2 . . . . . . . . . . . . . . . . . . . . . . . 1 Duelist 3 | . . . . 2 . . . . . . . . . . . . . . . . . . . . . . . 1 Protector 1 | . . . . 1 . . . . . . . . . . . . . . . . . . . . . . . . Researcher 2 | . . . . . . . . . . . . . . . . . . . . . . . . . . . . 2 Sentry 14 | . . . 3 3 1 . . . . . . . . . . . . . . . 1 . . . . 1 3 2 Specialist 3 | . . . . . . . . . . . . . . . . . . . . . . . . . . . 3 . Hunter 9 | . . . 1 . . . . . . . . . . . . . . . . 2 . . . . . . 2 4 Programmer 22 | . . . . . . . . . . . . . . 3 . 1 . . . . 3 2 . . . 4 9 . Q-Series 1 | . . . . . . . . . . . . . . . . . . . . . . . . . . . . 1 S7 Guard 1 | . . . . . . . . . . . . . . . . . . . . . . . . . . . . 1 Alpha 7 1 | . . . . . . . . . . . . . . . . . . . . . . . . . . . 1 . Fortress 1 | . . . . . . . . . . . . . . . . . . . . . . . . . . . 1 . Subdweller 5 | . . 5 . . . . . . . . . . . . . . . . . . . . . . . . . . Thug 2 | . . . . 2 . . . . . . . . . . . . . . . . . . . . . . . . Best Kill Streak 8 | 1 2 3 7 6 1 . 1 . 1 2 . . 3 5 . 4 4 1 . 2 3 2 5 1 5 4 4 8 Combat Bots Only 8 | . 2 3 5 5 1 . . . . 2 . . 3 4 . 4 4 . . 2 2 2 5 1 5 4 4 8 Max Kills in Single Turn 5 | 1 1 2 2 4 1 . 1 . 1 1 . . 2 4 . 3 2 1 . 2 1 1 5 1 2 3 1 2 Gunslinging . | . . . . . . . . . . . . . . . . . . . . . . . . . . . . . Exploded 5 | . . 2 . 3 . . . . . . . . 2 4 . 3 2 . . 2 . . 5 1 2 3 1 1 Melee 1 | . . . 1 1 . . . . . 1 . . 1 1 . 1 . . . 1 1 1 . . . 1 1 . Uniques/NPCs Destroyed . | . . . . . . . . . . . . . . . . . . . . . . . . . . . . . Combat | -11 -10 -10 -8 -8 -8 -8 -6 -6 -6 -6 -6 -6 -5 -5 -5 -5 -5 -5 -5 -4 -4 -4 -4 -4 -3 -3 -3 -3 -------- Run | Yrd Mat Sub Mat Sto Rec Scr Fac Was Fac Low Low Dat Pro Fac Was Fac Upp Upp Zhi Pro Fac Upp Upp War Pro Res Qua Sec Hostile Shots Fired 1390 | . 8 41 81 132 4 . 10 . 1 7 6 . 8 23 . 59 1 1 . 20 40 18 1 . 7 80 286 556 Missed 414 | . 2 13 23 33 1 . 7 . . 5 1 . 3 9 . 40 . . . 6 15 6 1 . 4 37 117 91 Damage Taken 17609 | . 84 684 840 1949 33 . 22 . 99 38 22 . 97 335 . 371 12 20 . 239 545 243 . 58 65 960 3055 7838 Core 2058 | . 11 181 49 272 . . 17 . 25 . . . . 13 . 37 . . . 16 92 . . . 20 125 171 1029 Absorbed by Shields 1262 | . . . . . . . . . 21 . . . . 70 . 12 . . . . . . . . . . 112 1047 Reduced by Siege Mode 349 | . . . . . . . . . . . . . . . . . . . . . . . . . . . . 349 Redirected to Shielding 500 | . . . . . . . 3 . 22 . . . . 78 . 98 10 . . 41 84 13 . 19 . 42 90 . Ignored by Resistances 1515 | . . . 31 35 9 . . . . . . . . . . . . . . . . . . . . . 302 1138 Regen/Repaired (Parts) 662 | . . . . . . . . 9 6 . . . . 74 . . . . . . . . . 19 . . 216 338 Core Remaining (%) 73 | 100 . 23 . . . 41 . . . . . . 95 . . . . . . 93 . . . . 90 . . . Volleys Fired 421 | 9 13 77 6 64 3 . . . . 4 4 . 1 14 . 12 2 . . 10 . . 1 3 3 2 51 142 Largest 2 | 1 2 2 2 2 2 . . . . 1 1 . 1 1 . 1 1 . . 1 . . 1 1 1 1 2 2 Hottest 214 | 40 100 100 86 53 50 . . . . 40 40 . 33 80 . 80 80 . . 80 . . 80 80 80 80 139 214 Shots Fired 507 | 9 19 90 12 96 7 . . . . 4 4 . 1 14 . 12 2 . . 10 . . 1 3 3 2 50 168 Gun 317 | 9 12 66 12 89 7 . . . . . . . . . . . . . . . . . . . . . 49 73 Cannon 119 | . . . . . . . . . . 4 4 . . 13 . 4 . . . 2 . . . 1 . . . 91 Launcher 35 | . . . . 7 . . . . . . . . 1 1 . 8 2 . . 8 . . 1 2 3 2 . . Special 36 | . 7 24 . . . . . . . . . . . . . . . . . . . . . . . . 1 4 Kinetic 259 | . . 10 6 89 7 . . . . 4 4 . . 13 . 4 . . . 2 . . . . . . 19 101 Thermal 95 | 9 7 52 5 . . . . . . . . . . . . . . . . . . . . . . . 3 19 Explosive 35 | . . . . 7 . . . . . . . . 1 1 . 8 2 . . 8 . . 1 2 3 2 . . Electromagnetic 79 | . 12 28 1 . . . . . . . . . . . . . . . . . . . . . . . . 38 Entropic 34 | . . . . . . . . . . . . . . . . . . . . . . . . 1 . . 27 6 Robot Hit Streak 32 | 3 6 13 7 17 10 . . . . 1 . . . 3 . 5 . . . . . . 6 . 7 9 22 32 Robot Miss Streak 4 | 2 1 3 1 4 1 . . . . 1 . . . 2 . . . . . . . . . . . . 3 4 Penetration Max 1 | . . . . . . . . . . . . . . . . . . . . . . . . . . . 1 1 Secondary Targets 1 | . . . 1 . . . . . . . . . . . . . . . . . . . . . . . . . Max Gunslinging Chain 1 | . . . 1 . . . . . . . . . . . . . . . . . . . . . . . . . Shots Hit Robots 592 | 6 9 54 44 95 5 . 1 . 6 14 4 . 1 38 . 22 2 7 2 5 23 12 1 . 1 29 77 134 Core Hits 391 | 2 5 23 11 61 2 . . . 3 7 4 . 3 26 . 30 7 4 1 12 11 4 6 2 10 17 44 96 Critical Kills 3 | . . . . . . . . . . . . . . . . . . . . . . . . . . . 1 2 Critical Parts Destroyed 20 | . . . 7 . . . . . . . . . . . . . . . . . . . . . . . 3 10 Critical Strikes 60 | . 1 1 7 5 . . 1 . 2 3 1 . . 6 . 1 . . 1 . 1 . . . . 1 6 23 Burn 2 | . . . . . . . . . . . . . . . . . . . . . . . . . . . 1 1 Destroy 14 | . . 1 . . . . . . . . . . . . . . . . . . . . . . . . 3 10 Blast 7 | . . . . . . . . . . 1 . . . 1 . . . . . . . . . . . . . 5 Corrupt 6 | . 1 . . . . . . . . . . . . . . . . . . . . . . . . . . 5 Smash 8 | . . . 7 1 . . . . . . . . . . . . . . . . . . . . . . . . Sever 4 | . . . . 4 . . . . . . . . . . . . . . . . . . . . . . . . Impale 15 | . . . . . . . 1 . 2 2 1 . . 5 . 1 . . 1 . 1 . . . . 1 . . Detonate 4 | . . . . . . . . . . . . . . . . . . . . . . . . . . . 2 2 Melee Attacks 502 | . . . 53 36 . . 10 . 22 16 16 . 2 61 . 39 11 13 2 24 66 22 5 2 9 42 49 2 Kinetic 3 | . . . . . . . . . . . . . . . . . . . . . . . . . . . 1 2 Impact 65 | . . . 48 17 . . . . . . . . . . . . . . . . . . . . . . . . Slashing 67 | . . . 5 19 . . . . . . . . . . . . . . . . . . . . . . 43 . Piercing 367 | . . . . . . . 10 . 22 16 16 . 2 61 . 39 11 13 2 24 66 22 5 2 9 42 5 . Sneak Attacks 57 | . . . 8 2 . . 1 . 3 2 . . . 21 . 10 . 1 . . 7 1 . . . . 1 . Combat Hostiles 1 | . . . . . . . . . . . . . . . . . . . . . . . . . . . 1 . Follow-up Attacks 4 | . . . 2 2 . . . . . . . . . . . . . . . . . . . . . . . . Damage Inflicted 31109 | 81 116 824 1816 3269 102 . 55 . 314 543 224 . 171 2984 . 2566 439 524 178 791 1132 480 317 115 768 1726 5112 6462 Guns 7176 | 78 116 751 209 1191 83 . . . . . . . . . . . . . . . . . . . . . 2116 2632 Cannons 3900 | . . . . . . . . . . 65 . . . 275 . 97 . . . . . . . . . . . 3463 Explosions 6347 | . . 69 . 1141 . . . . . . . . 127 756 . 1184 280 . . 627 . . 317 115 768 483 185 295 Melee 13602 | . . . 1575 931 . . 55 . 314 478 224 . 44 1953 . 1285 159 524 178 164 1132 480 . . . 1243 2811 52 Ramming 84 | 3 . 4 32 6 19 . . . . . . . . . . . . . . . . . . . . . . 20 Kinetic 6863 | . . 179 131 1191 83 . . . . 65 . . . 275 . 97 . . . . . . . . . . 547 4295 Thermal 2117 | 78 . 348 58 . . . . . . . . . . 606 . 190 . . . . . . . . . . 257 580 Explosive 5002 | . . . . 1141 . . . . . . . . 127 150 . 994 280 . . 627 . . 317 115 768 483 . . Electromagnetic 1643 | . 116 293 20 . . . . . . . . . . . . . . . . . . . . . . . . 1214 Impact 1750 | . . . 1437 313 . . . . . . . . . . . . . . . . . . . . . . . . Slashing 3567 | . . . 138 618 . . . . . . . . . . . . . . . . . . . . . . 2811 . Piercing 8233 | . . . . . . . 55 . 314 478 224 . 44 1953 . 1285 159 524 178 164 1132 480 . . . 1243 . . Entropic 1850 | . . . . . . . . . . . . . . . . . . . . . . . . . . . 1497 353 Highest Corruption 55 | . 2 2 8 8 8 . . . . . . . . 2 7 8 4 . . . 1 3 3 3 . 7 13 55 Average Corruption 8 | . 2 2 7 8 8 . . . . . . . . 1 4 7 2 . . . 1 1 3 3 . 5 8 31 Corruption Purged 13 | . . . . . . . . . . . . . . . . 5 4 . . . . . . . . 4 . . Corruption Blocked . | . . . . . . . . . . . . . . . . . . . . . . . . . . . . . Effects 216 | . 6 21 3 28 15 . . . . . . . . 2 1 21 2 . . . 3 3 2 . . 8 36 65 Message Errors 54 | . 3 6 1 8 2 . . . . . . . . . . 9 . . . . . . 1 . . 2 11 11 Matter Fused 47 | . 3 4 1 5 7 . . . . . . . . 1 . 3 . . . . 2 . . . . 2 7 12 Heat Flow Errors 20 | . . 2 . 4 2 . . . . . . . . . . 1 1 . . . . 1 . . . . 2 7 Energy Discharges 23 | . . 4 . 4 1 . . . . . . . . . . 2 1 . . . 1 1 . . . 1 3 5 Parts Rejected 6 | . . . . . . . . . . . . . . . 1 1 . . . . . . . . . . 1 3 Parts Fused 2 | . . . . . . . . . . . . . . . . . . . . . . . . . . . 1 1 Data Loss (minor) 18 | . . 3 1 2 . . . . . . . . . . . 3 . . . . . 1 1 . . 1 2 4 Data Loss (major) 9 | . . 2 . 1 . . . . . . . . . 1 . 1 . . . . . . . . . 1 1 2 Misfires 6 | . . . . . 1 . . . . . . . . . . . . . . . . . . . . . 1 4 Alerts 9 | . . . . 3 2 . . . . . . . . . . 1 . . . . . . . . . 1 . 2 Misdirections 5 | . . . . . . . . . . . . . . . . . . . . . . . . . . . 1 4 Weapon Failures 17 | . . . . 1 . . . . . . . . . . . . . . . . . . . . . . 6 10 Overload Shots . | . . . . . . . . . . . . . . . . . . . . . . . . . . . . . Overflow Damage 2772 | . . 34 672 18 . . 70 . 134 87 . . . 556 . 259 . 142 84 . 116 69 . . 13 73 349 96 Projectiles 113 | . . . 19 . . . . . . . . . . . . . . . . . . . . . . . . 94 Explosions 261 | . . 34 . 13 . . . . . . . . . 126 . 32 . . . . . . . . 13 34 7 2 Melee 2398 | . . . 653 5 . . 70 . 134 87 . . . 430 . 227 . 142 84 . 116 69 . . . 39 342 . Knockbacks 26 | . . . 8 3 . . . . . . . . . 2 . . . . . . . . . . . . . 13 Impact 9 | . . . 6 3 . . . . . . . . . . . . . . . . . . . . . . . . Kinetic 13 | . . . . . . . . . . . . . . 2 . . . . . . . . . . . . . 11 Secondary 4 | . . . 2 . . . . . . . . . . . . . . . . . . . . . . . . 2 Self-Inflicted Damage 356 | . . 37 . 155 . . . . . . . . . . . . . . . . . . . . . . 96 68 Shots 7 | . . 1 . 4 . . . . . . . . . . . . . . . . . . . . . . 1 1 Rammed 14 | 1 . 2 5 1 2 . . . . . . . . . . . . . . . . . . . . . . 3 Targets Rammed 14 | 1 . 2 5 1 2 . . . . . . . . . . . . . . . . . . . . . . 3 Kicked . | . . . . . . . . . . . . . . . . . . . . . . . . . . . . . Crushed . | . . . . . . . . . . . . . . . . . . . . . . . . . . . . . Highest Temperature 414 | . 156 142 260 414 233 . 5 . . 8 2 . . 38 . 114 107 . . . . 237 . . . . 305 224 Average Temperature 82 | . 47 79 101 109 88 . 4 . . 4 1 . . 24 . 40 47 . . . . 135 . . . . 163 71 Received Heat Transfer 3305 | . 48 96 495 729 9 . 6 . 18 18 . . . . . 36 . 9 . 42 84 . . . . 48 543 1124 Effects 5 | . . . 3 2 . . . . . . . . . . . . . . . . . . . . . . . . Interference 5 | . . . 3 2 . . . . . . . . . . . . . . . . . . . . . . . . Siege Activations 4 | . . . . . . . . . . . . . . . . . . . . . . . . . . . . 4 Total Turns 150 | . . . . . . . . . . . . . . . . . . . . . . . . . . . . 150 Longest Duration 67 | . . . . . . . . . . . . . . . . . . . . . . . . . . . . 67 Robots Corrupted 25 | . . . 14 1 . . . . . . . . . . . . . . . . . . . . . . . 10 Combat Hostiles 18 | . . . 7 1 . . . . . . . . . . . . . . . . . . . . . . . 10 Parts Fried 37 | . . 1 23 . . . . . . . . . . . . . . . . . . . . . . . . 13 Impact Corruptions 31 | . . . 29 2 . . . . . . . . . . . . . . . . . . . . . . . . Robots Melted 1 | . . . . . . . . . . . . . . . . . . . . . . . . . . . . 1 Combat Hostiles 1 | . . . . . . . . . . . . . . . . . . . . . . . . . . . . 1 Parts Melted 10 | . . . 1 . . . . . . 5 . . . . . . . . . . . . . . . . . 4 Heat Transferred 2266 | 175 . 725 148 . . . . . . . . . . 350 . 100 . . . . . . . . . . 198 570 Parts Sabotaged . | . . . . . . . . . . . . . . . . . . . . . . . . . . . . . Parts Stolen . | . . . . . . . . . . . . . . . . . . . . . . . . . . . . . Parts Stripped 18 | . . . . . . . . . . . . . . . . . . . . . . . . . . . 18 . Power Chain Reactions 2 | . . 2 . . . . . . . . . . . . . . . . . . . . . . . . . . Alert | -11 -10 -10 -8 -8 -8 -8 -6 -6 -6 -6 -6 -6 -5 -5 -5 -5 -5 -5 -5 -4 -4 -4 -4 -4 -3 -3 -3 -3 ------- Run | Yrd Mat Sub Mat Sto Rec Scr Fac Was Fac Low Low Dat Pro Fac Was Fac Upp Upp Zhi Pro Fac Upp Upp War Pro Res Qua Sec Peak Influence 1749 | 10 56 . 282 379 317 . 74 25 661 . . . . 974 307 1749 . . . . 255 . . . . 758 1080 1181 Initial 637 | . 6 . . 31 147 . . 25 17 . . . . 637 277 214 . . . . . . . . . 74 330 517 Average 520 | 4 38 . 75 202 233 . 25 25 442 . . . . 742 290 1232 . . . . 121 . . . . 366 842 885 Maximum Alert Level 5 | . . . 1 1 1 . . . 2 . . . . 3 1 5 . . . . 1 . . . . 3 3 4 Low Security (%) 34 | 100 100 . 85 67 30 . 100 100 15 . . . . . . . . . . . 81 . . . . 11 . . Level 1 15 | . . . 14 32 69 . . . 12 . . . . . 100 8 . . . . 18 . . . . 54 7 . Level 2 14 | . . . . . . . . . 72 . . . . 25 . 9 . . . . . . . . . 25 10 21 Level 3 27 | . . . . . . . . . . . . . . 74 . 12 . . . . . . . . . 7 82 67 Level 4 6 | . . . . . . . . . . . . . . . . 41 . . . . . . . . . . . 11 Level 5 3 | . . . . . . . . . . . . . . . . 27 . . . . . . . . . . . . High Security . | . . . . . . . . . . . . . . . . . . . . . . . . . . . . . Max Security . | . . . . . . . . . . . . . . . . . . . . . . . . . . . . . Squads Dispatched 77 | . . . 3 4 . . 7 . 10 . . . . 10 . 11 . . . . 3 . . . . 8 6 15 Investigation 31 | . . . 2 1 . . 4 . 4 . . . . 8 . 4 . . . . 2 . . . . 3 1 2 Extermination 6 | . . . . . . . . . . . . . . 2 . . . . . . . . . . . 1 2 1 Reinforcement 19 | . . . 1 1 . . 3 . 3 . . . . . . 4 . . . . 1 . . . . 1 1 4 Assault 12 | . . . . 2 . . . . . . . . . . . 3 . . . . . . . . . . 2 5 Garrison 6 | . . . . . . . . . 3 . . . . . . . . . . . . . . . . 3 . . Intercept 3 | . . . . . . . . . . . . . . . . . . . . . . . . . . . . 3 Searches Triggered 5 | . . . . . . . . . . . . . . 3 . 2 . . . . . . . . . . . . Data Miner Redirects 1 | . . . . . . . . . . . . . . . . . . . . . . . . . . . . 1 Construction Impeded 1 | . . . . . . . 1 . . . . . . . . . . . . . . . . . . . . . Haulers Reinforced 3 | . . . . . . . . . 1 . . . . . . 1 . . . . . . . . . . . 1 Active Scanning Responses . | . . . . . . . . . . . . . . . . . . . . . . . . . . . . . Cargo Convoy Interrupts . | . . . . . . . . . . . . . . . . . . . . . . . . . . . . . Stealth | -11 -10 -10 -8 -8 -8 -8 -6 -6 -6 -6 -6 -6 -5 -5 -5 -5 -5 -5 -5 -4 -4 -4 -4 -4 -3 -3 -3 -3 --------- Run | Yrd Mat Sub Mat Sto Rec Scr Fac Was Fac Low Low Dat Pro Fac Was Fac Upp Upp Zhi Pro Fac Upp Upp War Pro Res Qua Sec Distress Signals 25 | . . . 5 4 . . . . 2 . . . . 2 . 3 . . . . 2 . . 1 . 2 4 . Communications Jammed . | . . . . . . . . . . . . . . . . . . . . . . . . . . . . . Distress Signals . | . . . . . . . . . . . . . . . . . . . . . . . . . . . . . Times Spotted 378 | . 2 10 24 33 1 . 3 . 13 10 1 . 10 25 3 76 1 1 . 6 16 5 1 4 4 27 47 55 Peak Tracking Total 20 | . 2 3 7 8 1 . 2 . 4 3 1 . 5 6 3 20 2 2 . 4 9 2 5 11 5 13 14 9 Tactical Retreats 53 | . . . 5 2 . . 1 . . 4 1 . . 7 . 16 . 1 . . 2 . . . . 6 6 2 Traps | -11 -10 -10 -8 -8 -8 -8 -6 -6 -6 -6 -6 -6 -5 -5 -5 -5 -5 -5 -5 -4 -4 -4 -4 -4 -3 -3 -3 -3 ------- Run | Yrd Mat Sub Mat Sto Rec Scr Fac Was Fac Low Low Dat Pro Fac Was Fac Upp Upp Zhi Pro Fac Upp Upp War Pro Res Qua Sec Traps Triggered 5 | . 1 . . 1 . . 1 . . . . . . 2 . . . . . . . . . . . . . . Indirectly . | . . . . . . . . . . . . . . . . . . . . . . . . . . . . . Trap Hack Attempts . | . . . . . . . . . . . . . . . . . . . . . . . . . . . . . Triggered . | . . . . . . . . . . . . . . . . . . . . . . . . . . . . . Disarmed . | . . . . . . . . . . . . . . . . . . . . . . . . . . . . . Reprogrammed 6 | . . . . . . . . . . . . . . . . . . . . . 6 . . . . . . . Reused 7 | . . . . . . . . . . 6 . . . . . . . . . . 1 . . . . . . . Traps Extracted . | . . . . . . . . . . . . . . . . . . . . . . . . . . . . . Installed 8 | . . 1 . . . . . . . 7 . . . . . . . . . . . . . . . . . . Triggered 20 | . . . . . . . . . . 11 1 . . . . . . . . . 1 . . 6 . . . 1 Most Traps Carried 1 | . . 1 1 . . . . . . 1 1 1 1 1 . . . 1 . . . . . . . . . . Machines | -11 -10 -10 -8 -8 -8 -8 -6 -6 -6 -6 -6 -6 -5 -5 -5 -5 -5 -5 -5 -4 -4 -4 -4 -4 -3 -3 -3 -3 ---------- Run | Yrd Mat Sub Mat Sto Rec Scr Fac Was Fac Low Low Dat Pro Fac Was Fac Upp Upp Zhi Pro Fac Upp Upp War Pro Res Qua Sec Machines Disabled 45 | . . . . 2 . . . . 6 . . . . 6 . 18 . . . . . . . 2 . . 4 7 Max in Single Turn 16 | . . . . 1 . . . . . . . . . 6 . 16 . . . . . . . 1 . . 1 1 Garrison Access 3 | . . . . . . . . . . . . . . . . 1 . . . . 1 . . . . . 1 . Machines Repaired . | . . . . . . . . . . . . . . . . . . . . . . . . . . . . . Machines Dismantled . | . . . . . . . . . . . . . . . . . . . . . . . . . . . . . Machines Sabotaged . | . . . . . . . . . . . . . . . . . . . . . . . . . . . . . Overloaded Fab Kills . | . . . . . . . . . . . . . . . . . . . . . . . . . . . . . Hacking | -11 -10 -10 -8 -8 -8 -8 -6 -6 -6 -6 -6 -6 -5 -5 -5 -5 -5 -5 -5 -4 -4 -4 -4 -4 -3 -3 -3 -3 --------- Run | Yrd Mat Sub Mat Sto Rec Scr Fac Was Fac Low Low Dat Pro Fac Was Fac Upp Upp Zhi Pro Fac Upp Upp War Pro Res Qua Sec Machines Accessed 86 | . . 1 3 1 7 5 5 . 8 . 1 4 . 12 . 9 . . 4 . 8 3 . 2 . 6 5 2 Terminals 32 | . . . 3 1 2 . 1 . 2 . . . . 6 . 3 . . . . 5 . . . . 3 4 2 Fabricators 10 | . . . . . . . 1 . 4 . . . . 1 . 3 . . . . . . . . . 1 . . Repair Stations 2 | . . . . . . . . . 1 . . . . 1 . . . . . . . . . . . . . . Recycling Units 19 | . . . . . 5 . 3 . 1 . . . . 4 . 2 . . . . 2 . . . . 2 . . Scanalyzers . | . . . . . . . . . . . . . . . . . . . . . . . . . . . . . Garrison Access 3 | . . . . . . . . . . . . . . . . 1 . . . . 1 . . . . . 1 . Total Hacks 253 | . . 5 8 1 17 29 7 . 19 . 1 32 . 28 . 18 . . 17 . 27 8 . 2 . 18 11 5 Successful 175 | . . 5 2 . 5 29 5 . 12 . 1 32 . 16 . 4 . . 17 . 20 8 . 2 . 12 4 1 Failed 78 | . . . 6 1 12 . 2 . 7 . . . . 12 . 14 . . . . 7 . . . . 6 7 4 Catastrophic 22 | . . . 4 1 2 . 1 . 1 . . . . 3 . 6 . . . . . . . . . 1 2 1 Database Lockouts . | . . . . . . . . . . . . . . . . . . . . . . . . . . . . . Manual 106 | . . . 8 1 17 . 4 . 7 . . . . 23 . 11 . . . . 20 . . . . 13 2 . Terminals 101 | . . . 8 1 11 . 2 . 5 . . . . 18 . 6 . . . . 24 . . . . 12 9 5 Fabricators 20 | . . . . . . . 2 . 9 . . . . 2 . 5 . . . . . . . . . 2 . . Repair Stations 8 | . . . . . . . . . 4 . . . . 4 . . . . . . . . . . . . . . Recycling Units 26 | . . . . . 6 . 3 . 1 . . . . 4 . 6 . . . . 2 . . . . 4 . . Scanalyzers . | . . . . . . . . . . . . . . . . . . . . . . . . . . . . . Garrison Access 4 | . . . . . . . . . . . . . . . . 1 . . . . 1 . . . . . 2 . Terminal Hacks 118 | . . 5 2 . . 29 . . 2 . 1 32 . 2 . 1 . . 17 . 10 8 . 2 . 4 2 1 Record 50 | . . 5 . . . 23 . . . . . 11 . . . . . . 5 . . 6 . . . . . . Part Schematic 21 | . . . . . . . . . 1 . . 12 . . . . . . 4 . 4 . . . . . . . Robot Schematic 6 | . . . . . . . . . . . . 6 . . . . . . . . . . . . . . . . Robot Analysis 10 | . . . . . . 6 . . . . . . . . . . . . 4 . . . . . . . . . Prototype ID Bank 7 | . . . . . . . . . . . . 3 . . . . . . 4 . . . . . . . . . Open Door 5 | . . . . . . . . . . . 1 . . . . . . . . . . 2 . 2 . . . . Level Access Points 1 | . . . . . . . . . . . . . . . . 1 . . . . . . . . . . . . Branch Access Points 3 | . . . 1 . . . . . 1 . . . . . . . . . . . . . . . . 1 . . Emergency Access Points 1 | . . . . . . . . . . . . . . . . . . . . . . . . . . . . 1 Machine Index 1 | . . . . . . . . . . . . . . . . . . . . . . . . . . . 1 . Terminal Index 1 | . . . . . . . . . . . . . . . . . . . . . . . . . . 1 . . Recycling Unit Index 3 | . . . . . . . . . . . . . . 1 . . . . . . 1 . . . . 1 . . Alert Level 1 | . . . . . . . . . . . . . . . . . . . . . 1 . . . . . . . Unreport Threat 1 | . . . 1 . . . . . . . . . . . . . . . . . . . . . . . . . Locate Traps 1 | . . . . . . . . . . . . . . 1 . . . . . . . . . . . . . . Reprogram Traps 1 | . . . . . . . . . . . . . . . . . . . . . 1 . . . . . . . Patrol Status 2 | . . . . . . . . . . . . . . . . . . . . . 1 . . . . 1 . . Recall Investigation 1 | . . . . . . . . . . . . . . . . . . . . . . . . . . . 1 . Registered Prototypes 1 | . . . . . . . . . . . . . . . . . . . . . 1 . . . . . . . Zone Layout 1 | . . . . . . . . . . . . . . . . . . . . . 1 . . . . . . . Fabricator Hacks 10 | . . . . . . . 1 . 6 . . . . 1 . . . . . . . . . . . 2 . . Network Status 2 | . . . . . . . . . 1 . . . . . . . . . . . . . . . . 1 . . Load Schematic 4 | . . . . . . . . . 3 . . . . 1 . . . . . . . . . . . . . . Build 4 | . . . . . . . 1 . 2 . . . . . . . . . . . . . . . . 1 . . Repair Station Hacks 6 | . . . . . . . . . 2 . . . . 4 . . . . . . . . . . . . . . Scan Component 3 | . . . . . . . . . 1 . . . . 2 . . . . . . . . . . . . . . Repair 3 | . . . . . . . . . 1 . . . . 2 . . . . . . . . . . . . . . Recycling Unit Hacks 1 | . . . . . . . . . . . . . . . . . . . . . . . . . . 1 . . Retrieve Components 1 | . . . . . . . . . . . . . . . . . . . . . . . . . . 1 . . Scanalyzer . | . . . . . . . . . . . . . . . . . . . . . . . . . . . . . Garrison Access Hacks 3 | . . . . . . . . . . . . . . . . 1 . . . . 1 . . . . . 1 . Seal Access 3 | . . . . . . . . . . . . . . . . 1 . . . . 1 . . . . . 1 . Unauthorized Hacks 37 | . . . . . 5 . 4 . 2 . . . . 9 . 2 . . . . 9 . . . . 5 1 . Terminals 15 | . . . . . . . . . . . . . . 4 . . . . . . 7 . . . . 3 1 . Track 3 | . . . . . . . . . . . . . . . . . . . . . 2 . . . . 1 . . Assimilate 2 | . . . . . . . . . . . . . . 1 . . . . . . 1 . . . . . . . Botnet 4 | . . . . . . . . . . . . . . 2 . . . . . . 2 . . . . . . . Disrupt 3 | . . . . . . . . . . . . . . . . . . . . . 1 . . . . 1 1 . Operators 3 | . . . . . . . . . . . . . . 1 . . . . . . 1 . . . . 1 . . Fabricators 4 | . . . . . . . 1 . 1 . . . . 1 . 1 . . . . . . . . . . . . Haulers 2 | . . . . . . . 1 . . . . . . . . 1 . . . . . . . . . . . . Recompile 2 | . . . . . . . . . 1 . . . . 1 . . . . . . . . . . . . . . Repair Stations 13 | . . . . . . . 3 . 1 . . . . 4 . 1 . . . . 2 . . . . 2 . . Recycling Units 5 | . . . . . 5 . . . . . . . . . . . . . . . . . . . . . . . Tunnel 5 | . . . . . 5 . . . . . . . . . . . . . . . . . . . . . . . Fedlink 13 | . . . . . . . 3 . 1 . . . . 4 . 1 . . . . 2 . . . . 2 . . Scanalyzers . | . . . . . . . . . . . . . . . . . . . . . . . . . . . . . Garrison Access . | . . . . . . . . . . . . . . . . . . . . . . . . . . . . . Data Cores Recovered 1 | . . . . . . . . . . . . . . . . . . . . . . . . . . 1 . . Used . | . . . . . . . . . . . . . . . . . . . . . . . . . . . . . Hacking Detections 44 | . . . 3 1 2 . 1 . 6 . . . . 8 . 7 . . . . 5 . . . . 5 4 2 Full Trace Events 15 | . . . 2 . 2 . 1 . 1 . . . . 3 . 3 . . . . . . . . . 1 1 1 Feedback Events 2 | . . . . . . . . . . . . . . 1 . 1 . . . . . . . . . . . . Corruption 1 | . . . . . . . . . . . . . . . . 1 . . . . . . . . . . . . Hackware Fried 1 | . . . . . . . . . . . . . . 1 . . . . . . . . . . . . . . Feedback Blocked . | . . . . . . . . . . . . . . . . . . . . . . . . . . . . . Robot Schematics Acquired 6 | . . . . . . . . . . . . 6 . . . . . . . . . . . . . . . . Robots Built . | . . . . . . . . . . . . . . . . . . . . . . . . . . . . . Authchips . | . . . . . . . . . . . . . . . . . . . . . . . . . . . . . Time . | . . . . . . . . . . . . . . . . . . . . . . . . . . . . . Total Robot Build Rating . | . . . . . . . . . . . . . . . . . . . . . . . . . . . . . Part Schematics Acquired 23 | . . . . . . . . . 1 . . 12 . . . . . . 4 . 4 . . . . . . 2 Parts Built 5 | . . . . . . . 2 . 1 . . . . . . . . . . . . . . . . 2 . . Authchips 1 | . . . . . . . . . 1 . . . . . . . . . . . . . . . . . . . Time 204 | . . . . . . . 128 . 34 . . . . . . . . . . . . . . . . 42 . . Total Part Build Rating 33 | . . . . . . . 16 . 1 . . . . . . . . . . . . . . . . 16 . . Parts Repaired 2 | . . . . . . . . . . . . . . 2 . . . . . . . . . . . . . . Time 132 | . . . . . . . . . 62 . . . . 70 . . . . . . . . . . . . . . Parts Recycled . | . . . . . . . . . . . . . . . . . . . . . . . . . . . . . Recycled Matter . | . . . . . . . . . . . . . . . . . . . . . . . . . . . . . Retrieved Matter . | . . . . . . . . . . . . . . . . . . . . . . . . . . . . . Retrieved Components 3 | . . . . . . . . . . . . . . . . . . . . . . . . . . 3 . . Parts Scanalyzed . | . . . . . . . . . . . . . . . . . . . . . . . . . . . . . Part Schematics Acquired . | . . . . . . . . . . . . . . . . . . . . . . . . . . . . . Parts Damaged . | . . . . . . . . . . . . . . . . . . . . . . . . . . . . . Bothacking | -11 -10 -10 -8 -8 -8 -8 -6 -6 -6 -6 -6 -6 -5 -5 -5 -5 -5 -5 -5 -4 -4 -4 -4 -4 -3 -3 -3 -3 ------------ Run | Yrd Mat Sub Mat Sto Rec Scr Fac Was Fac Low Low Dat Pro Fac Was Fac Upp Upp Zhi Pro Fac Upp Upp War Pro Res Qua Sec Used RIF Installer . | . . . . . . . . . . . . . . . . . . . . . . . . . . . . . Robots Hacked 2 | . . . . . . . . . . . . . . . . . . . . . . . . . . . . 2 Non-combat . | . . . . . . . . . . . . . . . . . . . . . . . . . . . . . Combat . | . . . . . . . . . . . . . . . . . . . . . . . . . . . . . Robot Hacks Applied . | . . . . . . . . . . . . . . . . . . . . . . . . . . . . . Manual 2 | . . . . . . . . . . . . . . . . . . . . . . . . . . . . 2 Relay Couplers Released 4 | . . . . . . . . . . . . . . . . 4 . . . . . . . . . . . . Programmers 4 | . . . . . . . . . . . . . . . . 4 . . . . . . . . . . . . Fabnet Peak Effective % . | . . . . . . . . . . . . . . . . . . . . . . . . . . . . . Robots Rewired . | . . . . . . . . . . . . . . . . . . . . . . . . . . . . . Allies Hacked 3 | . . . . . . . . . 2 . . . . 1 . . . . . . . . . . . . . . Hacks Repelled . | . . . . . . . . . . . . . . . . . . . . . . . . . . . . . Allies | -11 -10 -10 -8 -8 -8 -8 -6 -6 -6 -6 -6 -6 -5 -5 -5 -5 -5 -5 -5 -4 -4 -4 -4 -4 -3 -3 -3 -3 -------- Run | Yrd Mat Sub Mat Sto Rec Scr Fac Was Fac Low Low Dat Pro Fac Was Fac Upp Upp Zhi Pro Fac Upp Upp War Pro Res Qua Sec Total Allies 27 | . . . . 2 . . . 20 . . . . . 1 1 . . . . . . 1 . . . . . 2 Largest Group 20 | . . . . 2 . . . 20 14 . . . . 1 1 . . . . . . 1 . . . . . 1 Highest-Rated Group 732 | . . . . 62 . . . 732 582 . . . . 26 31 . . . . . . 38 . . . . . 62 Highest-Rated Ally 62 | . . . . 31 . . . 50 50 . . . . 26 31 . . . . . . 38 . . . . . 62 Total Orders . | . . . . . . . . . . . . . . . . . . . . . . . . . . . . . Ally Attacks 122 | . . . . 10 . . . . 95 . . . . . 7 . . . . . . . . . . . . 10 Total Damage 3862 | . . . . 147 . . . . 3321 . . . . . 104 . . . . . . . . . . . . 290 Kills 23 | . . . . 1 . . . . 20 . . . . . . . . . . . . . . . . . . 2 Allies Corrupted 3 | . . . . . . . . . 1 . . . . . . . . . . . . 1 . . . . . 1 Allies Melted 1 | . . . . . . . . . 1 . . . . . . . . . . . . . . . . . . . Intel | -11 -10 -10 -8 -8 -8 -8 -6 -6 -6 -6 -6 -6 -5 -5 -5 -5 -5 -5 -5 -4 -4 -4 -4 -4 -3 -3 -3 -3 ------- Run | Yrd Mat Sub Mat Sto Rec Scr Fac Was Fac Low Low Dat Pro Fac Was Fac Upp Upp Zhi Pro Fac Upp Upp War Pro Res Qua Sec Robot Analysis Total 10 | . . . . . . 6 . . . . . . . . . . . . 4 . . . . . . . . . Derelict Logs Recovered 15 | . . 1 . . . 3 . . . 1 . . 1 . . . 1 2 . 2 . 2 2 . . . . . Drone Launches . | . . . . . . . . . . . . . . . . . . . . . . . . . . . . . Drone Recoveries . | . . . . . . . . . . . . . . . . . . . . . . . . . . . . . Exploration | -11 -10 -10 -8 -8 -8 -8 -6 -6 -6 -6 -6 -6 -5 -5 -5 -5 -5 -5 -5 -4 -4 -4 -4 -4 -3 -3 -3 -3 ------------- Run | Yrd Mat Sub Mat Sto Rec Scr Fac Was Fac Low Low Dat Pro Fac Was Fac Upp Upp Zhi Pro Fac Upp Upp War Pro Res Qua Sec Turns Passed 18191 | 132 519 1263 809 748 507 5057 181 132 615 411 691 69 236 984 29 949 158 232 75 451 585 358 114 370 141 417 911 1047 Spaces Moved 17289 | 62 51 811 344 221 221 2173 380 208 1038 608 715 81 335 1839 87 1525 413 533 182 513 893 652 315 1022 337 491 703 536 Core 263 | 3 . 26 . . . . 1 . . . . . . . . 1 . . . . . . . . . . . 232 Treads 3375 | 59 51 139 298 114 221 2173 . . . . . . . . . . . . . . . . . . . . 85 235 Legs 328 | . . . . 107 . . . . . . . . . . . . . . . . . . . . . . 152 69 Wheels 692 | . . 646 46 . . . . . . . . . . . . . . . . . . . . . . . . . Hover 12020 | . . . . . . . . . 1014 608 715 81 335 1839 87 1524 413 533 182 513 893 652 315 1022 337 491 466 . Flight 611 | . . . . . . . 379 208 24 . . . . . . . . . . . . . . . . . . . Fastest Speed 16 | 50 160 100 100 160 160 160 26 26 26 34 34 34 26 22 22 22 30 30 30 22 22 22 30 22 30 16 22 50 Average Speed 73 | 154 160 118 168 191 221 230 30 26 37 36 34 86 42 30 29 33 30 30 30 29 29 29 30 30 30 34 71 107 Slowest Speed 850 | 160 160 250 240 330 240 240 350 28 150 90 90 102 102 86 30 850 30 30 30 30 30 30 30 88 30 86 330 250 Overloaded Moves 284 | . . . . . . . . . 3 . . . 16 35 7 142 . . . 3 15 9 . 4 . 18 32 . Propulsion Burnouts . | . . . . . . . . . . . . . . . . . . . . . . . . . . . . . Robots Hopped 1 | . . . . . . . 1 . . . . . . . . . . . . . . . . . . . . . Cave-ins Triggered . | . . . . . . . . . . . . . . . . . . . . . . . . . . . . . Teleports 1 | . . . . . . . . . . . . . . . . . . . . . . . . . . . . 1 Exploration Rate (%) 49 | 6 13 46 34 41 53 91 10 88 35 52 60 70 47 35 67 38 59 71 61 56 20 67 60 94 56 16 73 24 Regions Visited 28 Branch Regions 18 Pre-discovered Areas 14 | . . 1 . . 5 1 . . . . . 1 . . . . . . 3 1 . . 2 . . . . . Known Exits Taken 10 | . . 1 1 1 . . . . 1 . . . 1 . . 1 . . . 1 1 . . . 1 1 . . Unknown Exits Taken 14 | 1 1 . . . 1 1 . . . 1 1 1 . . . . 1 1 1 . . 1 1 1 . . 1 . Scrap Searched 24 | . . 4 . . . 8 . . . 1 1 . . . . . 2 3 . 1 . 2 2 . . . . . Spaces Dug 195 | . . . 2 . . . 9 . 14 1 14 . 6 22 . 19 9 5 . 19 37 8 5 . 9 8 5 3 Terrain Destroyed 599 | . . 6 2 79 . . 9 . 14 3 14 . 6 55 . 98 37 5 . 89 37 8 22 3 34 16 46 16 Melee 177 | . . . 2 . . . 9 . 14 1 10 . . 21 . 17 9 5 . 17 37 8 5 . 9 8 5 . Projectile 26 | . . . . . . . . . . 2 4 . . 7 . 2 . . . 2 . . . . . . . 9 AOE 395 | . . 6 . 79 . . . . . . . . 6 27 . 79 28 . . 70 . . 17 3 25 8 41 6 Terrain Rammed . | . . . . . . . . . . . . . . . . . . . . . . . . . . . . . Walls Destroyed . | . . . . . . . . . . . . . . . . . . . . . . . . . . . . . Machines Disabled . | . . . . . . . . . . . . . . . . . . . . . . . . . . . . . Actions | -11 -10 -10 -8 -8 -8 -8 -6 -6 -6 -6 -6 -6 -5 -5 -5 -5 -5 -5 -5 -4 -4 -4 -4 -4 -3 -3 -3 -3 --------- Run | Yrd Mat Sub Mat Sto Rec Scr Fac Was Fac Low Low Dat Pro Fac Was Fac Upp Upp Zhi Pro Fac Upp Upp War Pro Res Qua Sec Total 21550 | 86 455 965 480 415 234 2241 430 285 1227 773 1134 80 425 2155 89 1884 427 585 198 759 1121 791 324 1077 358 706 1020 826 Wait 2699 | . 391 51 29 44 . 5 25 71 139 113 391 . 82 198 . 280 . 35 3 209 149 109 1 32 10 145 136 51 Move 17261 | 61 50 810 343 220 220 2172 378 207 1037 607 714 80 334 1839 86 1524 412 532 181 512 892 651 314 1021 336 490 702 536 Hop 1 | . . . . . . . 1 . . . . . . . . . . . . . . . . . . . . . Pick Up 136 | 7 . 7 10 11 2 16 1 2 5 11 . . 1 13 1 4 . 2 3 . 6 4 . 4 . 5 14 7 Fast Attach 125 | 5 . 4 16 13 . 12 4 2 9 . . . . 4 1 5 . 1 3 . . . 1 3 . 3 16 23 Attach 80 | 2 . 3 . 9 1 6 5 . 2 2 4 . 1 4 . . 1 . . . 3 . . 1 . 4 13 19 Detach 26 | . . . . 3 . . . . . 2 4 . 1 . . . . . . . . . . . . 1 7 8 Swap 97 | 1 1 8 6 7 3 1 . . 2 1 . . 1 10 . 11 . . 1 4 2 1 1 4 . 8 10 14 Drop 183 | . . 2 15 9 3 29 6 3 11 10 . . 1 12 1 9 1 2 5 . 3 4 1 7 . 6 22 21 Fire 421 | 9 13 77 6 64 3 . . . . 4 4 . 1 14 . 12 2 . . 10 . . 1 3 3 2 51 142 Melee 497 | . . . 50 34 . . 10 . 22 16 16 . 2 61 . 39 11 13 2 24 66 22 5 2 9 42 49 2 Ram 2 | . . . . . . . . . . . . . . . . . . . . . . . . . . . . 2 Kick . | . . . . . . . . . . . . . . . . . . . . . . . . . . . . . Crush 12 | 1 . 2 5 1 2 . . . . . . . . . . . . . . . . . . . . . . 1 Escape Stasis . | . . . . . . . . . . . . . . . . . . . . . . . . . . . . . Rewire 1 | . . . . . . . . . . . 1 . . . . . . . . . . . . . . . . . Trap 8 | . . 1 . . . . . . . 7 . . . . . . . . . . . . . . . . . . Miscellaneous 1 | . . . . . . . . . . . . . 1 . . . . . . . . . . . . . . . Route ------- -11/Scrapyard -10/Materials -10/Subcaves (discovered 3 exits: *Mat x2 / Rec) -8/Materials (discovered 2 exits: *Sto x2) -8/Storage -8/Recycling -8/Scraptown (discovered 2 exits: *Fac x2) -6/Factory -6/Waste -6/Factory (discovered 2 exits: *Low x2) -6/Lower Caves -6/Lower Caves (discovered 2 exits: *Fac / *Dat) -6/Data Miner -5/Proximity Caves -5/Factory (discovered 5 exits: *Fac x2 / *Upp x2 / [*Ext]) -5/Waste -5/Factory (discovered 5 exits: *Fac x4 / *Upp) -5/Upper Caves -5/Upper Caves -5/Zhirov -4/Proximity Caves -4/Factory (discovered 5 exits: Res x2 / *Upp x2 / Arm) -4/Upper Caves -4/Upper Caves (discovered 2 exits: *Res / *War) -4/Warlord -3/Proximity Caves -3/Research (discovered 4 exits: *Res x2 / *Qua x2) -3/Quarantine (discovered 2 exits: *Res / *Sec) -3/Section 7 History --------- Turn | Location | Event 14 | -11/Scrapyard | Discovered new exit (range 16) 133 | -11/Scrapyard | Entered Materials 305 | -10/Materials | Build established: Mutant 646 | -10/Materials | Discovered new exit (range 3) 652 | -10/Materials | Entered Subcaves 702 | -10/Subcaves | Shifting Twisted Machinery released Piercing Trap 702 | -10/Subcaves | Shifting Twisted Machinery released Flamer 936 | -10/Subcaves | Ambushed by Subdweller buried in earth 936 | -10/Subcaves | Ambushed by Subdweller buried in earth 938 | -10/Subcaves | Ambushed by Subdweller buried in earth 977 | -10/Subcaves | Core integrity fell below 50% 1032 | -10/Subcaves | Lost 4 parts (1p2n1w) 1314 | -10/Subcaves | Visited Clippyterm 1317 | -10/Subcaves | Identified exit to Materials 1317 | -10/Subcaves | Identified exit to Recycling 1317 | -10/Subcaves | Learned Research security intel 1768 | -10/Subcaves | A swath of the cavern ceiling suddenly collapsed 1822 | -10/Subcaves | Shifting Twisted Machinery released Sub. Monowheel 1850 | -10/Subcaves | Shifting Twisted Machinery released Piercing Trap 1915 | -10/Subcaves | Entered Materials 1915 | -8/Materials | Evolved 4 slots: Propulsion x1, Utility x3 2242 | -8/Materials | Build established: Scavenger-Mutant 2302 | -8/Materials | Identified exit to Storage 2583 | -8/Materials | Build established: Mutant 2724 | -8/Materials | Entered Storage 2734 | -8/Storage | Met a pair of Derelict thieves 2895 | -8/Storage | Lost 7 parts (1p2n3u1w) 3107 | -8/Storage | Core integrity fell below 50% 3133 | -8/Storage | Lost 4 parts (1n1u2w) 3210 | -8/Storage | Build established: Scavenger-Mutant 3468 | -8/Storage | Used back door to open Recycling access 3468 | -8/Storage | Discovered exit to Recycling (range 3) 3472 | -8/Storage | Entered Recycling 3911 | -8/Recycling | Scanned before Scraplab entrance 3957 | -8/Recycling | Entered Scraplab 3976 | -8/Recycling | Discovered new exit (range 2) 3979 | -8/Recycling | Entered Scraptown 3979 | -8/Scraptown | System corruption cleaned by C-Scrubber 4193 | -8/Scraptown | Heard Great Nut preacher, LISTEN AND RECITE! 4205 | -8/Scraptown | Scanned Subdweller tech in exchange for log data 4215 | -8/Scraptown | Learned location of Warlord (-4) 4217 | -8/Scraptown | Learned location of 1 exit from Proximity Caves 5324 | -8/Scraptown | Discovered new exit (range 11) 5470 | -8/Scraptown | Visited Bundlers 5682 | -8/Scraptown | Visited Spacefarers 5776 | -8/Scraptown | Visited Cyclists 5840 | -8/Scraptown | Visited Shadow of the Wyrm 5903 | -8/Scraptown | Visited UFD Registry 5903 | -8/Scraptown | Registered with UFD as "Softbay" 5970 | -8/Scraptown | Entered Cyclist Reading Room 6078 | -8/Scraptown | Visited Awakened 6100 | -8/Scraptown | Visited CPS Storage 6124 | -8/Scraptown | Visited Fellowship of the Rings 6263 | -8/Scraptown | Visited LU-1G1's Boring Crew 6306 | -8/Scraptown | Visited Derelict Rescue Squad 6333 | -8/Scraptown | Found DRS Beacon 6418 | -8/Scraptown | Visited Analyses Database 6471 | -8/Scraptown | Visited Junk Repository 6526 | -8/Scraptown | Visited Botcube Research 6558 | -8/Scraptown | Found Botcube 6597 | -8/Scraptown | Visited Research Penetration Think Tank 6647 | -8/Scraptown | Visited Junk Repository 6729 | -8/Scraptown | Delivered Scrap Shield to a Scientist 6909 | -8/Scraptown | Visited Chapter 10 6973 | -8/Scraptown | Visited Curators Association 7009 | -8/Scraptown | Visited A0-MCA Data Center 7024 | -8/Scraptown | Given a C+ rating by A0-MCA 7032 | -8/Scraptown | Found A0-MCA's Component Scanner 7904 | -8/Scraptown | Discovered new exit (range 5) 7976 | -8/Scraptown | Found Scrap Suit 8761 | -8/Scraptown | Build established: Mutant 9009 | -8/Scraptown | Found Scrap Suit 9036 | -8/Scraptown | Entered Factory 9036 | -6/Factory | Evolved 4 slots: Propulsion x2, Utility x2 9212 | -6/Factory | Fabricated Biometal Medium Treads? 9217 | -6/Factory | Sucked down chute 9217 | -6/Factory | Entered Waste 9218 | -6/Waste | Joined by Warlord forces that had cleared the area 9265 | -6/Waste | Discovered new exit (range 14) 9331 | -6/Waste | Build established: Hacker-Sprinter 9349 | -6/Waste | Entered Factory 9349 | -6/Factory | Accompanied by 14 allies 9658 | -6/Factory | Build established: Hacker-Mutant 9698 | -6/Factory | Identified exit to Lower Caves 9878 | -6/Factory | Fabricated Lrg. Storage Unit (x1) 9964 | -6/Factory | Entered Lower Caves 9966 | -6/Lower Caves | UFD Scientist delivered a prototype 9967 | -6/Lower Caves | Found Enh. Scrap Shield 9978 | -6/Lower Caves | Learned location of 2 exits from Factory 10049 | -6/Lower Caves | Build established: Mutant 10372 | -6/Lower Caves | Discovered new exit (range 7) 10375 | -6/Lower Caves | Entered another Lower Caves area 10394 | -6/Lower Caves | Discovered new exit (range 13) 10840 | -6/Lower Caves | Spotted B-75 Beast 11054 | -6/Lower Caves | Discovered new exit (range 8) 11061 | -6/Lower Caves | Murdered Warlord Statue 11066 | -6/Lower Caves | Entered Data Miner 11066 | -6/Data Miner | Discovered new exit (range 6) 11073 | -6/Data Miner | Met Data Miner 11093 | -6/Data Miner | Learned location of Section 7 (-3) 11093 | -6/Data Miner | Acquired the access code to Warlord's prototype stash 11110 | -6/Data Miner | Received God Mode back door access code from Data Miner 11135 | -6/Data Miner | Entered Proximity Caves 11136 | -5/Proximity Caves | Identified exit to Factory 11145 | -5/Proximity Caves | Spotter reported a threat 11145 | -5/Proximity Caves | Spotter reported a threat 11173 | -5/Proximity Caves | Activated DRS Beacon 11222 | -5/Proximity Caves | Spotter reported a threat 11281 | -5/Proximity Caves | Spotted B-75 Beast 11327 | -5/Proximity Caves | Spotter reported a threat 11369 | -5/Proximity Caves | Learned 8 Factory zone layouts 11371 | -5/Proximity Caves | Entered Factory 11371 | -5/Factory | Evolved 2 slots: Propulsion x1, Utility x1 11372 | -5/Factory | Identified exit to Factory 11372 | -5/Factory | Identified exit to Upper Caves 11469 | -5/Factory | Discovered exit to Upper Caves (range 14) 11481 | -5/Factory | Discovered new exit (range 12) 11629 | -5/Factory | Repaired Rocket Launcher 11635 | -5/Factory | Hacking Suite fried by hacking feedback 11662 | -5/Factory | Build established: Sprinter 11668 | -5/Factory | Repaired Imp. Utility Shielding? 11671 | -5/Factory | Search patrols dispatched 11773 | -5/Factory | Discovered exit to Factory (range 3) 11971 | -5/Factory | Search patrols dispatched 11990 | -5/Factory | Found Mni. Smartbomb Launcher 11992 | -5/Factory | Found Mni. Smartbomb Launcher 12271 | -5/Factory | Search patrols dispatched 12355 | -5/Factory | Sucked down chute 12355 | -5/Factory | Entered Waste 12356 | -5/Waste | Met a frightened Derelict 12360 | -5/Waste | Spotted C-40 Crusher 12367 | -5/Waste | Spotted C-40 Crusher 12370 | -5/Waste | EMP discharged 12371 | -5/Waste | Spotted C-40 Crusher 12371 | -5/Waste | Spotted C-40 Crusher 12371 | -5/Waste | Spotted C-40 Crusher 12378 | -5/Waste | Discovered new exit (range 13) 12384 | -5/Waste | Entered Factory 12684 | -5/Factory | First assault squad dispatched 12874 | -5/Factory | Discovered exit to Factory (range 4) 12984 | -5/Factory | Search patrols dispatched 13284 | -5/Factory | Search patrols dispatched 13306 | -5/Factory | Discovered exit to Upper Caves (range 16) 13333 | -5/Factory | Entered Upper Caves 13484 | -5/Upper Caves | Learned Factory emergency access door positions 13490 | -5/Upper Caves | Discovered new exit (range 3) 13491 | -5/Upper Caves | Entered another Upper Caves area 13704 | -5/Upper Caves | Discovered new exit (range 18) 13712 | -5/Upper Caves | Learned 8 Factory zone layouts 13714 | -5/Upper Caves | Learned 4 Factory zone layouts 13723 | -5/Upper Caves | Entered Zhirov 13723 | -5/Zhirov | Discovered new exit (range 3) 13729 | -5/Zhirov | Met Zhirov 13735 | -5/Zhirov | Learned location of Quarantine (-3) 13735 | -5/Zhirov | Learned location of Command (-1) 13737 | -5/Zhirov | Zhirov requested help retrieving the SGEMP Prototype 13742 | -5/Zhirov | Found Alien Artifact 13742 | -5/Zhirov | Identified Integrated Dissipator 13742 | -5/Zhirov | Installed Integrated Dissipator, increased core heat dissipation (+20) 13751 | -5/Zhirov | Found Alien Artifact 13798 | -5/Zhirov | Entered Proximity Caves 13931 | -4/Proximity Caves | Spotted B-86 Titan 14244 | -4/Proximity Caves | Discovered exit to Factory (range 7) 14249 | -4/Proximity Caves | Entered Factory 14249 | -4/Factory | Evolved 2 slots: Utility x2 14250 | -4/Factory | Identified exit to Armory 14251 | -4/Factory | Identified exit to Upper Caves 14251 | -4/Factory | Identified exit to Research 14548 | -4/Factory | Build established: Hacker-Sprinter 14834 | -4/Factory | Entered Upper Caves 14842 | -4/Upper Caves | Learned 8 Research zone layouts 14860 | -4/Upper Caves | Learned 8 Research zone layouts 14860 | -4/Upper Caves | Learned Armory trap positions 14860 | -4/Upper Caves | Learned Armory garrison access intel 14900 | -4/Upper Caves | A Commander dispatched an escort 14921 | -4/Upper Caves | Attracted the attention of an 0b10 checkpoint 14980 | -4/Upper Caves | Learned Research emergency access door positions 15189 | -4/Upper Caves | Discovered new exit (range 11) 15192 | -4/Upper Caves | Entered another Upper Caves area 15199 | -4/Upper Caves | Discovered exit to Research (range 16) 15302 | -4/Upper Caves | Discovered new exit (range 12) 15306 | -4/Upper Caves | Entered Warlord 15317 | -4/Warlord | System corruption cleaned by Quarantine Array 15476 | -4/Warlord | Visited the Vortex Lab 15478 | -4/Warlord | Found Vortex Shotgun 15480 | -4/Warlord | Found Vortex Shotgun 15496 | -4/Warlord | Warlord's base attacked by MAIN.C 15507 | -4/Warlord | Rebuked by Warlord 15539 | -4/Warlord | Found Vortex Cannon 15581 | -4/Warlord | Found System Purifier 15657 | -4/Warlord | Lost 3 allies 15668 | -4/Warlord | Opened side exit 15674 | -4/Warlord | Discovered new exit (range 9) 15676 | -4/Warlord | Entered Proximity Caves 15814 | -3/Proximity Caves | Discovered exit to Research (range 10) 15817 | -3/Proximity Caves | Entered Research 15817 | -3/Research | Evolved 2 slots: Utility x2 15818 | -3/Research | Identified exit to Research 15853 | -3/Research | Garrison activated, responded to threat 15935 | -3/Research | Fabricated Cmb. Antigrav System (x2) 16088 | -3/Research | Discovered exit to Research (range 15) 16199 | -3/Research | Identified exit to Quarantine 16228 | -3/Research | Found Exp. Shield Generator 16234 | -3/Research | Entered Quarantine 16280 | -3/Quarantine | Cryocooling Duct disabled 16295 | -3/Quarantine | Ambient heat levels rising (+20) 16295 | -3/Quarantine | Non-combat units ordered to evacuate 16305 | -3/Quarantine | Build established: Hacker-Mutant 16312 | -3/Quarantine | Found Alien Slashing Weapon 16312 | -3/Quarantine | Identified Sigix Broadsword 16509 | -3/Quarantine | Found Alien Impact Weapon 16547 | -3/Quarantine | Discovered exit to Research (range 8) 16560 | -3/Quarantine | Spotted Alpha 7 16639 | -3/Quarantine | System corruption reached 10% 16679 | -3/Quarantine | Destroyed Alpha 7 16681 | -3/Quarantine | Found Multirail 16688 | -3/Quarantine | Found Exp. Targeting Computer 16691 | -3/Quarantine | Found Exp. Target Analyzer 16700 | -3/Quarantine | Lost 8 parts (2n3u3w) 16750 | -3/Quarantine | Found Exp. ECM Suite 16942 | -3/Quarantine | Identified Core Stripper 16967 | -3/Quarantine | Spotted Fortress 16973 | -3/Quarantine | Destroyed Fortress 16984 | -3/Quarantine | First assault squad dispatched 17008 | -3/Quarantine | Found Exp. Force Field 17013 | -3/Quarantine | Found Thermal Barrier 17020 | -3/Quarantine | Found Centrium Heavy Armor Plating 17030 | -3/Quarantine | Found Exp. EM Disruption Field 17138 | -3/Quarantine | Discovered new exit (range 5) 17145 | -3/Quarantine | Entered Section 7 17256 | -3/Section 7 | Scanned by Researcher 17277 | -3/Section 7 | Found Integrated Dissipator 17277 | -3/Section 7 | Installed Integrated Dissipator, increased core heat dissipation (+20) 17315 | -3/Section 7 | Found Alien Artifact 17395 | -3/Section 7 | First assault squad dispatched 17398 | -3/Section 7 | Spotted S7 Guard 17421 | -3/Section 7 | Destroyed S7 Guard 17429 | -3/Section 7 | Found Corrupted Hvy. Regenerative Plating 17440 | -3/Section 7 | System corruption reached 30% 17448 | -3/Section 7 | Found Alien Artifact 17451 | -3/Section 7 | Identified Core Physics Calibrator 17547 | -3/Section 7 | Destroyed 8 combat bots 17749 | -3/Section 7 | Build established: Scavenger-Mutant 17797 | -3/Section 7 | Identified Integrated Mediator 17797 | -3/Section 7 | Installed Integrated Mediator, increased core attachment efficiency 17913 | -3/Section 7 | Found Exp. Armor Integrity Analyzer 17919 | -3/Section 7 | Found Exp. Focal Shield 17956 | -3/Section 7 | Spotted B-86 Titan 17976 | -3/Section 7 | Intercept squad dispatched 17983 | -3/Section 7 | Spotted Tracker 17983 | -3/Section 7 | Spotted Tracker 17995 | -3/Section 7 | Spotted Combat Programmer 17996 | -3/Section 7 | Spotted Combat Programmer 18004 | -3/Section 7 | Core integrity fell below 50% 18019 | -3/Section 7 | Botcube activated 18029 | -3/Section 7 | Botcube completed mutation into hovering form, armed with 2 guns. 18049 | -3/Section 7 | Lost 11 parts (1p3n5u2w) 18057 | -3/Section 7 | Core integrity fell below 20% 18074 | -3/Section 7 | Spotted S7 Guard 18086 | -3/Section 7 | Identified Transdimensional Reconstructor 18086 | -3/Section 7 | Warped through subspace 18116 | -3/Section 7 | Lost 4 parts (2n2w) 18131 | -3/Section 7 | Botcube activated 18147 | -3/Section 7 | Found Alien Artifact 18168 | -3/Section 7 | Incoming assault squad redirected 18192 | -3/Section 7 | Destroyed by Combat Programmer with EMDS Last Messages --------------- dispatched. 18147_ Acquired Alien Artifact. 18155_ EMDS Slug penetrates Wall. 18159_ Penetrated by EMDS Slug. 18168_ ALERT: Higher priority target reported, redirecting assault. 18171_ Mutated Botcube suffers critical hit (Burn). 18173_ G-67 Veteran suffers critical hit (Destroy). 18173_ G-67 Veteran destroyed. 18173_ EMDS Slug penetrates Mutated Botcube. 18175_ Mutated Botcube destroyed. 18183_ Penetrated by EMDS Slug. 18185_ System corrupted: Heat flow error (+174). 18189_ A0-MCA's Component Scanner destroyed. 18190_ Slammed into G-67 Veteran. 18190_ Destabilizing: System interference. 18190_ Exp. Target Analyzer temporarily disabled. 18190_ Core Analyzer temporarily disabled. 18190_ Exp. Armor Integrity Analyzer temporarily disabled. 18191_ Slammed into G-67 Veteran. 18192_ Penetrated by EMDS Slug. Map ----- +----------------------------------------------------+ | ?????????????????????????????????????????????????? | | ?????????????????????????????????????????????????? | | ??????????????????################???????????????? | | ??????????????????# #???????????????? | | ??????????????????# #???????????????? | | ??????????????????# #???????????????? | | ??????????????????# #???????????????? | | ???????????????#### ###########???????????????? | | ??????????????# # #???????????#?????????????? | | ???????????######## ########## ######????????? | | ???????????# !!= ] ???????? | | ???????????#=! [[|! ???????? | | ???????????#*%![% ! ????????? | | ???????????#!=%%[ """"""" """"""" ????????? | | ?###########*%/*###! """"""" """"""????? ???????? | | ?# # %%%#?# %""""""" """"""" #??????? | | ?# """ """ # [[#?# #??????? | | ?# """ """ # #?# ""T"??????????? | | ?# """ """ # #?# """"??????????? | | ?# # #?# ################??????????? | | ?? """ """ # #?# # #???????????????? | | ????""S""" # #?#%& # #???????????????? | | ?????? # #?# #g"""" #???????????????? | | ########+### #?# # "" ^#???????????????? | | ### gg"""" #???????????????? | | % #"" # @ "" #???????????????? | | ! "" #"T #m "" #???????????????? | | ""T !%% " ### # p #???????????????? | | "" ###?# ###########???????????????? | | *[%% #???# #?????????????????????????? | | %%=! ] #???# ###########???????????????? | | [$##### #######???# *=" + ""???????? | | %!#####+###???????#!%[%##### #####???????????????? | | *#%* #???????# [ "#?????????????????????????? | | !=#! """ #???????# #?????????????????????????? | | =!# R" #??###+###/#####???????????????????????? | | *!#[ """ #??# #???????????????????????? | | !# ! #??# """ """ #???????????????????????? | | ! +!! #??# """ """ #???????????????????????? | | ![#* #??# """ """ #???????????????????????? | | !=# """ #??# """ """ #???????????????????????? | | # " " #??# """ """ !#???????????????????????? | | ### """ !#??# """ """ #???????????????????????? | | ??# #??# """ """ #???????????????????????? | | ??##### ###??# #???????????????????????? | | ???????##????# #???????????????????????? | | ?????????????# #???????????????????????? | | ?????????????? #???????????????????????? | | ?????????????#############???????????????????????? | | ?????????????????????????????????????????????????? | +----------------------------------------------------+ Best States ------------- Heat Dissipation 124 Energy Generation 38 Energy Capacity 850 Matter Stores 300 Matter Capacity 300 Sight Range 23 Terrain Scan Density 10 ECM Strength 1 Power Amplification 40 Additional Mass Support 9 Armor Coverage 1200 Resistance: KI 30 Resistance: TH 50 Resistance: EM 75 Propulsion Shielding 90 Utility Shielding 66 Melee Speed Boost 50 Evasion (%) 71 Targeting Accuracy 12 Melee Accuracy 8 Target Analysis 10 Core Analysis 6 Armor Integrity Analysis 50 Recoil Reduction 6 Offensive Hacking 37 Defensive Hacking 12 Authchip Count 1 Item Schematics ----------------- Lrg. Storage Unit | -6/Factory | Hacked Combat Drone Bay | -6/Data Miner | Free Lgt. Regenerative Plating | -6/Data Miner | Free Cld. Nuclear Pulse Thruster | -6/Data Miner | Free Imp. Thermal Defense Suite | -6/Data Miner | Free Cld. Plasma Rifle | -6/Data Miner | Free Adv. VSS Leg | -6/Data Miner | Free Adv. Trap Scanner | -6/Data Miner | Free Hvy. Disruptor Cannon | -6/Data Miner | Free Dispersion Rifle | -6/Data Miner | Free Enh. Force Lance | -6/Data Miner | Free Disruptor Cannon | -6/Data Miner | Free Hvy. Armored Exoskeleton | -6/Data Miner | Free Assault Drone Bay | -5/Zhirov | Free Exp. Heat Sink | -5/Zhirov | Free Exp. Optical Array | -5/Zhirov | Free Imp. Arc Thrower | -5/Zhirov | Free Imp. Propulsion Shielding | -4/Factory | Hacked Exp. Propulsion Shielding | -4/Factory | Hacked Beam Splitter | -4/Factory | Hacked Exp. ECM Suite | -4/Factory | Hacked Exp. Matter Compressor | -3/Section 7 | Archive Enh. Coil Gun | -3/Section 7 | Archive Robot Schematics ------------------ R-10 Processor | -6/Data Miner | Free G-50 Soldier | -6/Data Miner | Free B-48 Gladiator | -6/Data Miner | Free G-67 Veteran | -6/Data Miner | Free B-60 Warrior | -6/Data Miner | Free O-32 Director | -6/Data Miner | Free Fabricated ------------ Biometal Medium Treads | x2 | -6/Factory | Preloaded Lrg. Storage Unit | x1 | -6/Factory Cmb. Antigrav System | x2 | -3/Research | Preloaded Alien Tech Used ----------------- Integrated Dissipator Sigix Broadsword Core Stripper Core Physics Calibrator Integrated Mediator Transdimensional Reconstructor Achievements -------------- None Challenges ------------ None Game ------ Seed DecoyExoskeletonSword Manual? 0 Play Time 03:27:28 Cumulative 774.4 hours Start 2024.08.09 @ 15:50:12 End 2024.08.10 @ 03:01:20 Sessions 13 Manual Loads 0 Difficulty Rogue Special Mode None Game No. 751 Rogue 751 Adventurer 0 Explorer 0 Win Type - Total 39 Types 14/4/11/2/0/0/5/2/1 Lore% 82 Gallery% 90 Achievement% 84 Wizard Run 0 Options --------- Layout 0 ASCII 0 Keyboard 0 Movement Numpad Keybinds 0 Fullscreen 1 Font 18/Smallcaps Map View 76x50 Zoom Use 0% Tactical HUD 1 Map Filters NONE Filters NONE Steam 1 RUN: 9299b80e-0157-474a-af40-64693a0e358f